Workbook

Sheet Лист1
A1: Школа | C1: МБОУ "Ямашурминская СОШ" | F1: Утвердил: | G1: должность | H1: Директор
A2: Типовое примерное меню приготавливаемых блюд | G2: фамилия | H2: Cафиуллин Ленар Габдулкаюмович
A3: Возрастная категория | E3: 7-11 лет | G3: дата | H3: 7 | I3: 3 | J3: 2026
H4: день | I4: месяц | J4: год
A5: Неделя | B5: День недели | C5: Прием пищи | D5: Раздел меню | E5: Блюда | F5: Вес блюда, г | G5: Белки | H5: Жиры | I5: Углеводы | J5: Калорийность | K5: № рецептуры | L5: Цена
A6: 1 | B6: 1 | C6: Завтрак | D6: гор.блюдо | E6: Котлета из мяса птицы с макаронными изделиями отварными, с маслом сливочным | F6: 230 | G6: 11.45 | H6: 12.46 | I6: 31.32 | J6: 289.95 | K6: ТТК
D7: гор.напиток | E7: Напиток из шиповника (75С) | F7: 200 | G7: 0.68 | H7: 0.28 | I7: 20.76 | J7: 88.2 | K7: 349
D8: хлеб | E8: Хлеб ржаной | F8: 30 | G8: 1.98 | H8: 0.36 | I8: 11.88 | J8: 59.4 | K8: Хим.сост
D9: закуска | E9: Икра кабачковая | F9: 60 | G9: 0.64 | H9: 3.31 | I9: 6.33 | J9: 50.28 | K9: ТТК
D13: итого | F13: =F6+F7+F8+F9+F10+F11 -> 520 | G13: =G6+G7+G8+G9+G10+G11 -> 14.75 | H13: 16.41 | I13: 70.29 | J13: 487.83 | L13: 77.76
A14: =A6 -> 1 | B14: =B6 -> 1 | C14: Завтрак 2 | D14: фрукты
D17: итого | F17: =SUM(F14:F16) -> 0 | G17: =SUM(G14:G16) -> 0 | H17: 0 | I17: 0 | J17: 0 | L17: =SUM(L14:L22) -> 0
A18: =A6 -> 1 | B18: =B6 -> 1 | C18: Обед | D18: закуска
D19: 1 блюдо
D20: 2 блюдо
D21: гарнир
D22: напиток
D23: хлеб бел.
D24: хлеб черн.
D27: итого | F27: =SUM(F18:F26) -> 0 | G27: =SUM(G18:G26) -> 0 | H27: 0 | I27: 0 | J27: 0 | L27: =SUM(L24:L32) -> 0
A28: =A6 -> 1 | B28: =B6 -> 1 | C28: Полдник | D28: булочное
D29: напиток
D32: итого | F32: =SUM(F28:F31) -> 0 | G32: =SUM(G28:G31) -> 0 | H32: 0 | I32: 0 | J32: 0 | L32: =SUM(L25:L31) -> 0
A33: =A6 -> 1 | B33: =B6 -> 1 | C33: Ужин | D33: гор.блюдо
D34: гарнир
D35: напиток
D36: хлеб
D39: итого | F39: =SUM(F33:F38) -> 0 | G39: =SUM(G33:G38) -> 0 | H39: 0 | I39: 0 | J39: 0 | L39: =SUM(L33:L41) -> 0
A40: =A6 -> 1 | B40: =B6 -> 1 | C40: Ужин 2 | D40: кисломол.
D41: булочное
D42: напиток
D43: фрукты
D46: итого | F46: =SUM(F40:F45) -> 0 | G46: =SUM(G40:G45) -> 0 | H46: 0 | I46: 0 | J46: 0 | L46: =SUM(L40:L48) -> 0
A47: =A6 -> 1 | B47: =B6 -> 1 | C47: Итого за день: | F47: =F13+F17+F27+F32+F39+F46 -> 520 | G47: =G13+G17+G27+G32+G39+G46 -> 14.75 | H47: 16.41 | I47: 70.29 | J47: 487.83 | L47: 77.76
A48: 1 | B48: 2 | C48: Завтрак | D48: гор.блюдо | E48: Гуляш из говядины | F48: 100 | G48: 10.4 | H48: 14.8 | I48: 10.3 | J48: 221.0 | K48: 260
D49: гор.блюдо | E49: Каша гречневая рассыпчатая | F49: 150 | G49: 3.8 | H49: 2.3 | I49: 39.7 | J49: 214.0 | K49: 171
E50: Сыр порционно | F50: 10 | G50: 2.6 | H50: 2.7 | I50: 0.0 | J50: 34.3 | K50: 15
D51: гор.напиток | E51: Чай с сахаром, с лимоном | F51: 200 | G51: 0.1 | H51: 0.0 | I51: 10.2 | J51: 41.3 | K51: 377
D52: хлеб | E52: Хлеб ржаной | F52: 50 | G52: 3.3 | H52: 0.6 | I52: 19.8 | J52: 99.0 | K52: хим.сост
D55: итого | F55: 510 | G55: 20.2 | H55: 20.36 | I55: 79.97 | J55: 609.65 | L55: 77.76
A56: =A48 -> 1 | B56: =B48 -> 2 | C56: Завтрак 2 | D56: фрукты
D59: итого | F59: =SUM(F56:F58) -> 0 | G59: =SUM(G56:G58) -> 0 | H59: =SUM(H56:H58) -> 0 | I59: =SUM(I56:I58) -> 0 | J59: =SUM(J56:J58) -> 0 | L59: =SUM(L56:L64) -> 0
A60: =A48 -> 1 | B60: =B48 -> 2 | C60: Обед | D60: закуска
D61: 1 блюдо
D62: 2 блюдо
D63: гарнир
D64: напиток
D65: хлеб бел.
D66: хлеб черн.
D69: итого | F69: =SUM(F60:F68) -> 0 | G69: =SUM(G60:G68) -> 0 | H69: =SUM(H60:H68) -> 0 | I69: =SUM(I60:I68) -> 0 | J69: =SUM(J60:J68) -> 0 | L69: =SUM(L66:L74) -> 0
A70: =A48 -> 1 | B70: =B48 -> 2 | C70: Полдник | D70: булочное
D71: напиток
D74: итого | F74: =SUM(F70:F73) -> 0 | G74: =SUM(G70:G73) -> 0 | H74: =SUM(H70:H73) -> 0 | I74: =SUM(I70:I73) -> 0 | J74: =SUM(J70:J73) -> 0 | L74: =SUM(L67:L73) -> 0
A75: =A48 -> 1 | B75: =B48 -> 2 | C75: Ужин | D75: гор.блюдо
D76: гарнир
D77: напиток
D78: хлеб
D81: итого | F81: =SUM(F75:F80) -> 0 | G81: =SUM(G75:G80) -> 0 | H81: =SUM(H75:H80) -> 0 | I81: =SUM(I75:I80) -> 0 | J81: =SUM(J75:J80) -> 0 | L81: =SUM(L75:L83) -> 0
A82: =A48 -> 1 | B82: =B48 -> 2 | C82: Ужин 2 | D82: кисломол.
D83: булочное
D84: напиток
D85: фрукты
D88: итого | F88: =SUM(F82:F87) -> 0 | G88: =SUM(G82:G87) -> 0 | H88: =SUM(H82:H87) -> 0 | I88: =SUM(I82:I87) -> 0 | J88: =SUM(J82:J87) -> 0 | L88: =SUM(L82:L90) -> 0
A89: =A48 -> 1 | B89: =B48 -> 2 | C89: Итого за день: | F89: =F55+F59+F69+F74+F81+F88 -> 510 | G89: =G55+G59+G69+G74+G81+G88 -> 20.2 | H89: =H55+H59+H69+H74+H81+H88 -> 20.36 | I89: =I55+I59+I69+I74+I81+I88 -> 79.97 | J89: =J55+J59+J69+J74+J81+J88 -> 609.65 | L89: 77.76
A90: 1 | B90: 3 | C90: Завтрак | D90: гор.блюдо | E90: Птица запеченная | F90: 100 | G90: 10.4 | H90: 12.4 | I90: 8.7 | J90: 192.0 | K90: ТТК
D91: гор.блюдо | E91: Пюре картофельное с маслом сливочным | F91: 153 | G91: 3.1 | H91: 6.3 | I91: 20.5 | J91: 150.5 | K91: 312
D92: гор.напиток | E92: Компот из сухофруктов (75С) | F92: 200 | G92: 0.7 | H92: 0.1 | I92: 22.0 | J92: 92.8 | K92: 349
D93: закуска | E93: Свекла отварная дольками | F93: 60 | G93: 1.1 | H93: 0.1 | I93: 5.9 | J93: 28.8 | K93: Хим.сост
D94: хлеб | E94: Хлеб пшеничный | F94: 30 | G94: 2.3 | H94: 0.2 | I94: 14.8 | J94: 70.5 | K94: Хим.сост
D95: хлеб | E95: Хлеб ржаной | F95: 40 | G95: 2.6 | H95: 0.5 | I95: 15.8 | J95: 79.2 | K95: Хим.сост
D98: итого | F98: =F90+F91+F92+F93+F94+F95 -> 583 | G98: =G90+G91+G92+G93+G94+G95 -> 20.13 | H98: 19.55 | I98: 87.63 | J98: 613.75 | L98: 77.76
A99: =A90 -> 1 | B99: =B90 -> 3 | C99: Завтрак 2 | D99: фрукты
D102: итого | F102: =SUM(F99:F101) -> 0 | G102: =SUM(G99:G101) -> 0 | H102: =SUM(H99:H101) -> 0 | I102: =SUM(I99:I101) -> 0 | J102: =SUM(J99:J101) -> 0 | L102: =SUM(L99:L107) -> 0
A103: =A90 -> 1 | B103: =B90 -> 3 | C103: Обед | D103: закуска
D104: 1 блюдо
D105: 2 блюдо
D106: гарнир
D107: напиток
D108: хлеб бел.
D109: хлеб черн.
D112: итого | F112: =SUM(F103:F111) -> 0 | G112: =SUM(G103:G111) -> 0 | H112: =SUM(H103:H111) -> 0 | I112: =SUM(I103:I111) -> 0 | J112: =SUM(J103:J111) -> 0 | L112: =SUM(L109:L117) -> 0
A113: =A90 -> 1 | B113: =B90 -> 3 | C113: Полдник | D113: булочное
D114: напиток
D117: итого | F117: =SUM(F113:F116) -> 0 | G117: =SUM(G113:G116) -> 0 | H117: =SUM(H113:H116) -> 0 | I117: =SUM(I113:I116) -> 0 | J117: =SUM(J113:J116) -> 0 | L117: =SUM(L110:L116) -> 0
A118: =A90 -> 1 | B118: =B90 -> 3 | C118: Ужин | D118: гор.блюдо
D119: гарнир
D120: напиток
D121: хлеб
D124: итого | F124: =SUM(F118:F123) -> 0 | G124: =SUM(G118:G123) -> 0 | H124: =SUM(H118:H123) -> 0 | I124: =SUM(I118:I123) -> 0 | J124: =SUM(J118:J123) -> 0 | L124: =SUM(L118:L126) -> 0
A125: =A90 -> 1 | B125: =B90 -> 3 | C125: Ужин 2 | D125: кисломол.
D126: булочное
D127: напиток
D128: фрукты
D131: итого | F131: =SUM(F125:F130) -> 0 | G131: =SUM(G125:G130) -> 0 | H131: =SUM(H125:H130) -> 0 | I131: =SUM(I125:I130) -> 0 | J131: =SUM(J125:J130) -> 0 | L131: =SUM(L125:L133) -> 0
A132: =A90 -> 1 | B132: =B90 -> 3 | C132: Итого за день: | F132: =F98 -> 583 | G132: =G98 -> 20.13 | H132: 19.55 | I132: 87.63 | J132: 613.75 | L132: 77.76
A133: 1 | B133: 4 | C133: Завтрак | D133: гор.блюдо | E133: Сырники из творога с кашей молочной "Дружба" с маслом сливочным | F133: 215 | G133: 10.55 | H133: 11.85 | I133: 39.4 | J133: 324.45 | K133: ТТК
D134: гор.напиток | E134: Кофейный напиток с молоком | F134: 200 | G134: 3.2 | H134: 2.7 | I134: 6 | J134: 60.7 | K134: 379
D135: фрукты | E135: Плоды и ягоды свежие (яблоки) | F135: 100 | G135: 0.4 | H135: 0.4 | I135: 9.8 | J135: 47 | K135: хим.сост
D136: хлеб | E136: Хлеб ржаной | F136: 30 | G136: 1.98 | H136: 0.36 | I136: 11.88 | J136: 59.4 | K136: хим.сост
D141: итого | F141: 545 | G141: 16.1 | H141: 15.29 | I141: 67.08 | J141: 491.55 | L141: 77.76
A142: =A133 -> 1 | B142: =B133 -> 4 | C142: Завтрак 2 | D142: фрукты
D145: итого | F145: =SUM(F142:F144) -> 0 | G145: =SUM(G142:G144) -> 0 | H145: =SUM(H142:H144) -> 0 | I145: =SUM(I142:I144) -> 0 | J145: =SUM(J142:J144) -> 0 | L145: =SUM(L142:L150) -> 0
A146: =A133 -> 1 | B146: =B133 -> 4 | C146: Обед | D146: закуска
D147: 1 блюдо
D148: 2 блюдо
D149: гарнир
D150: напиток
D151: хлеб бел.
D152: хлеб черн.
D155: итого | F155: =SUM(F146:F154) -> 0 | G155: =SUM(G146:G154) -> 0 | H155: =SUM(H146:H154) -> 0 | I155: =SUM(I146:I154) -> 0 | J155: =SUM(J146:J154) -> 0 | L155: =SUM(L152:L160) -> 0
A156: =A133 -> 1 | B156: =B133 -> 4 | C156: Полдник | D156: булочное
D157: напиток
D160: итого | F160: =SUM(F156:F159) -> 0 | G160: =SUM(G156:G159) -> 0 | H160: =SUM(H156:H159) -> 0 | I160: =SUM(I156:I159) -> 0 | J160: =SUM(J156:J159) -> 0 | L160: =SUM(L153:L159) -> 0
A161: =A133 -> 1 | B161: =B133 -> 4 | C161: Ужин | D161: гор.блюдо
D162: гарнир
D163: напиток
D164: хлеб
D167: итого | F167: =SUM(F161:F166) -> 0 | G167: =SUM(G161:G166) -> 0 | H167: =SUM(H161:H166) -> 0 | I167: =SUM(I161:I166) -> 0 | J167: =SUM(J161:J166) -> 0 | L167: =SUM(L161:L169) -> 0
A168: =A133 -> 1 | B168: =B133 -> 4 | C168: Ужин 2 | D168: кисломол.
D169: булочное
D170: напиток
D171: фрукты
D174: итого | F174: =SUM(F168:F173) -> 0 | G174: =SUM(G168:G173) -> 0 | H174: =SUM(H168:H173) -> 0 | I174: =SUM(I168:I173) -> 0 | J174: =SUM(J168:J173) -> 0 | L174: =SUM(L168:L176) -> 0
A175: =A133 -> 1 | B175: =B133 -> 4 | C175: Итого за день: | F175: =F141+F145+F155+F160+F167+F174 -> 545 | G175: =G141+G145+G155+G160+G167+G174 -> 16.1 | H175: =H141+H145+H155+H160+H167+H174 -> 15.29 | I175: =I141+I145+I155+I160+I167+I174 -> 67.08 | J175: =J141+J145+J155+J160+J167+J174 -> 491.55 | L175: 77.76
A176: 1 | B176: 5 | C176: Завтрак | D176: гор.блюдо | E176: Жаркое по-домашнему с индейкой | F176: 200 | G176: 15.3 | H176: 17.0 | I176: 34.8 | J176: 335.2 | K176: ТТК
D177: гор.напиток | E177: Напиток из свежих фруктов (75С) | F177: 200 | G177: 0.3 | H177: 0.2 | I177: 21.5 | J177: 103.5 | K177: ТТК
D178: закуска | E178: Салат из квашенной капусты | F178: 60 | G178: 1.0 | H178: 3.0 | I178: 5.1 | J178: 51.4 | K178: ТТК
D179: хлеб | E179: Хлеб пшеничный | F179: 40 | G179: 3.0 | H179: 0.3 | I179: 19.7 | J179: 94.0 | K179: Хим.сост
D184: итого | F184: =F176+F177+F178+F179+F180 -> 500 | G184: =G176+G177+G178+G179+G180 -> 19.73 | H184: 20.48 | I184: 80.98 | J184: 584.12 | L184: 77.76
A185: =A176 -> 1 | B185: =B176 -> 5 | C185: Завтрак 2 | D185: фрукты
D188: итого | F188: =SUM(F185:F187) -> 0 | G188: =SUM(G185:G187) -> 0 | H188: =SUM(H185:H187) -> 0 | I188: =SUM(I185:I187) -> 0 | J188: =SUM(J185:J187) -> 0 | L188: =SUM(L185:L193) -> 0
A189: =A176 -> 1 | B189: =B176 -> 5 | C189: Обед | D189: закуска
D190: 1 блюдо
D191: 2 блюдо
D192: гарнир
D193: напиток
D194: хлеб бел.
D195: хлеб черн.
D198: итого | F198: =SUM(F189:F197) -> 0 | G198: =SUM(G189:G197) -> 0 | H198: =SUM(H189:H197) -> 0 | I198: =SUM(I189:I197) -> 0 | J198: =SUM(J189:J197) -> 0 | L198: =SUM(L195:L203) -> 0
A199: =A176 -> 1 | B199: =B176 -> 5 | C199: Полдник | D199: булочное
D200: напиток
D203: итого | F203: =SUM(F199:F202) -> 0 | G203: =SUM(G199:G202) -> 0 | H203: =SUM(H199:H202) -> 0 | I203: =SUM(I199:I202) -> 0 | J203: =SUM(J199:J202) -> 0 | L203: =SUM(L196:L202) -> 0
A204: =A176 -> 1 | B204: =B176 -> 5 | C204: Ужин | D204: гор.блюдо
D205: гарнир
D206: напиток
D207: хлеб
D210: итого | F210: =SUM(F204:F209) -> 0 | G210: =SUM(G204:G209) -> 0 | H210: =SUM(H204:H209) -> 0 | I210: =SUM(I204:I209) -> 0 | J210: =SUM(J204:J209) -> 0 | L210: =SUM(L204:L212) -> 0
A211: =A176 -> 1 | B211: =B176 -> 5 | C211: Ужин 2 | D211: кисломол.
D212: булочное
D213: напиток
D214: фрукты
D217: итого | F217: =SUM(F211:F216) -> 0 | G217: =SUM(G211:G216) -> 0 | H217: =SUM(H211:H216) -> 0 | I217: =SUM(I211:I216) -> 0 | J217: =SUM(J211:J216) -> 0 | L217: =SUM(L211:L219) -> 0
A218: =A176 -> 1 | B218: =B176 -> 5 | C218: Итого за день: | F218: =F184+F188+F198+F203+F210+F217 -> 500 | G218: =G184+G188+G198+G203+G210+G217 -> 19.73 | H218: =H184+H188+H198+H203+H210+H217 -> 20.48 | I218: =I184+I188+I198+I203+I210+I217 -> 80.98 | J218: =J184+J188+J198+J203+J210+J217 -> 584.12 | L218: 77.76
A219: 1 | B219: 6 | C219: Завтрак | D219: гор.блюдо | E219: Биточки рыбные с рисом отварным рассыпчатым с маслом сливочным | F219: 228 | G219: 12.9 | H219: 12.4 | I219: 40.1 | J219: 304.3 | K219: ТТК
D220: гор.напиток | E220: Чай с сахаром, с лимоном | F220: 200 | G220: 0.1 | H220: 0.2 | I220: 10.2 | J220: 41.3 | K220: 377
D221: хлеб | E221: Хлеб пшеничный | F221: 35 | G221: 2.7 | H221: 0.3 | I221: 17.2 | J221: 82.3 | K221: Хим.сост
D222: закуска | E222: Салат из кукурузы к/с | F222: 60 | G222: 0.5 | H222: 2.5 | I222: 2.4 | J222: 29.8 | K222: ТТК
D226: итого | F226: =F219+F220+F221+F222 -> 523 | G226: =G219+G220+G222+G221 -> 16.16 | H226: 15.34 | I226: 69.9 | J226: 457.66 | L226: 77.76
A227: =A219 -> 1 | B227: =B219 -> 6 | C227: Завтрак 2 | D227: фрукты
D230: итого | F230: =SUM(F227:F229) -> 0 | G230: =SUM(G227:G229) -> 0 | H230: =SUM(H227:H229) -> 0 | I230: =SUM(I227:I229) -> 0 | J230: =SUM(J227:J229) -> 0 | L230: =SUM(L227:L235) -> 0
A231: =A219 -> 1 | B231: =B219 -> 6 | C231: Обед | D231: закуска
D232: 1 блюдо
D233: 2 блюдо
D234: гарнир
D235: напиток
D236: хлеб бел.
D237: хлеб черн.
D240: итого | F240: =SUM(F231:F239) -> 0 | G240: =SUM(G231:G239) -> 0 | H240: =SUM(H231:H239) -> 0 | I240: =SUM(I231:I239) -> 0 | J240: =SUM(J231:J239) -> 0 | L240: =SUM(L237:L245) -> 0
A241: =A219 -> 1 | B241: =B219 -> 6 | C241: Полдник | D241: булочное
D242: напиток
D245: итого | F245: =SUM(F241:F244) -> 0 | G245: =SUM(G241:G244) -> 0 | H245: =SUM(H241:H244) -> 0 | I245: =SUM(I241:I244) -> 0 | J245: =SUM(J241:J244) -> 0 | L245: =SUM(L238:L244) -> 0
A246: =A219 -> 1 | B246: =B219 -> 6 | C246: Ужин | D246: гор.блюдо
D247: гарнир
D248: напиток
D249: хлеб
D252: итого | F252: =SUM(F246:F251) -> 0 | G252: =SUM(G246:G251) -> 0 | H252: =SUM(H246:H251) -> 0 | I252: =SUM(I246:I251) -> 0 | J252: =SUM(J246:J251) -> 0 | L252: =SUM(L246:L254) -> 0
A253: =A219 -> 1 | B253: =B219 -> 6 | C253: Ужин 2 | D253: кисломол.
D254: булочное
D255: напиток
D256: фрукты
D259: итого | F259: =SUM(F253:F258) -> 0 | G259: =SUM(G253:G258) -> 0 | H259: =SUM(H253:H258) -> 0 | I259: =SUM(I253:I258) -> 0 | J259: =SUM(J253:J258) -> 0 | L259: =SUM(L253:L261) -> 0
A260: =A219 -> 1 | B260: =B219 -> 6 | C260: Итого за день: | F260: =F226+F230+F240+F245+F252+F259 -> 523 | G260: =G226+G230+G240+G245+G252+G259 -> 16.16 | H260: =H226+H230+H240+H245+H252+H259 -> 15.34 | I260: =I226+I230+I240+I245+I252+I259 -> 69.9 | J260: =J226+J230+J240+J245+J252+J259 -> 457.66 | L260: 77.76
A261: 1 | B261: 7 | C261: Завтрак | D261: гор.блюдо
D262: гор.блюдо
D263: гор.напиток
D264: хлеб
D265: хлеб
D266: фрукты
D269: итого | F269: =SUM(F261:F268) -> 0 | G269: =SUM(G261:G268) -> 0 | H269: =SUM(H261:H268) -> 0 | I269: =SUM(I261:I268) -> 0 | J269: =SUM(J261:J268) -> 0 | L269: =SUM(L261:L268) -> 0
A270: =A261 -> 1 | B270: =B261 -> 7 | C270: Завтрак 2 | D270: фрукты
D273: итого | F273: =SUM(F270:F272) -> 0 | G273: =SUM(G270:G272) -> 0 | H273: =SUM(H270:H272) -> 0 | I273: =SUM(I270:I272) -> 0 | J273: =SUM(J270:J272) -> 0 | L273: =SUM(L270:L278) -> 0
A274: =A261 -> 1 | B274: =B261 -> 7 | C274: Обед | D274: закуска
D275: 1 блюдо
D276: 2 блюдо
D277: гарнир
D278: напиток
D279: хлеб бел.
D280: хлеб черн.
D283: итого | F283: =SUM(F274:F282) -> 0 | G283: =SUM(G274:G282) -> 0 | H283: =SUM(H274:H282) -> 0 | I283: =SUM(I274:I282) -> 0 | J283: =SUM(J274:J282) -> 0 | L283: =SUM(L280:L288) -> 0
A284: =A261 -> 1 | B284: =B261 -> 7 | C284: Полдник | D284: булочное
... 219 more rows
